bitfinex-derivatives/quotes_BTCF0:USTF0_20241015
["timestamp","ask_amount","ask_price","bid_price","bid_amount"]
[1729004742991,0.3608,65254.0,65253.0,0.076628]
[1729004743383,0.67404001,65267.0,65255.0,0.076625]
[1729004743384,0.076614,65265.0,65255.0,0.076625]
[1729004743582,0.3608,65259.0,65250.0,0.00018753]
[1729004743892,0.3608,65259.0,65250.0,0.07681853]
[1729004744092,0.3608,65259.0,65249.0,0.00761574]
[1729004744093,0.3608,65251.0,65249.0,0.00761574]
[1729004744287,0.3608,65251.0,65238.0,0.00229871]
[1729004744485,0.437431,65251.0,65239.0,0.3684289]
[1729004744690,0.437431,65251.0,65245.0,0.076637]
[1729004745097,0.3608,65251.0,65240.0,0.41]
[1729004745290,0.3608,65251.0,65239.0,0.3684289]
[1729004745291,0.076634,65248.0,65242.0,0.07664]
[1729004745602,0.3608,65251.0,65243.0,0.07664]
[1729004745799,0.437431,65251.0,65243.0,0.07664]
[1729004746002,0.3608,65251.0,65240.0,0.41]
[1729004746192,0.076625,65257.0,65250.0,0.076631]
[1729004746498,0.3608,65259.0,65241.0,0.41]
[1729004746800,0.3608,65259.0,65254.0,0.076627]
[1729004747098,0.3608,65270.0,65258.0,0.7708]
[1729004747285,0.076606,65272.0,65265.0,0.486614]
[1729004747486,0.076606,65272.0,65266.0,0.076612]
[1729004747692,0.076606,65272.0,65267.0,0.076611]
[1729004748089,0.076596,65281.0,65275.0,0.076602]
[1729004748291,0.076596,65280.0,65276.0,0.076601]
[1729004748590,0.0766,65278.0,65271.0,0.41]
[1729004748794,0.3608,65282.0,65272.0,0.076606]
[1729004748990,0.3608,65282.0,65278.0,0.076598]
[1729004749187,0.076598,65279.0,65273.0,0.076604]
[1729004749387,0.00230006,65283.0,65272.0,0.41]
[1729004749586,0.00230006,65283.0,65282.0,0.076594]
[1729004750201,0.00230006,65283.0,65276.0,0.3608]
[1729004750202,0.076595,65282.0,65276.0,0.4374]
[1729004750494,0.00230006,65283.0,65282.0,0.076594]
[1729004751098,0.00230006,65283.0,65277.0,0.41]
[1729004751293,0.00230006,65283.0,65278.0,0.076598]
[1729004751488,0.07889306,65283.0,65279.0,0.076597]
[1729004751798,0.00230006,65283.0,65276.0,0.3608]
[1729004751997,0.00230006,65283.0,65280.0,0.076596]
[1729004752386,0.07889306,65283.0,65277.0,0.41]
[1729004752586,0.3608,65280.0,65272.0,0.00775941]
[1729004752787,0.3608,65280.0,65268.0,0.3608]
[1729004753100,0.3608,65280.0,65261.0,0.34228472]
[1729004753101,0.3608,65274.0,65261.0,0.2816]
[1729004753292,0.3608,65268.0,65261.0,0.0086072]
[1729004753599,0.076612,65267.0,65257.0,0.076623]
[1729004753803,0.3608,65268.0,65253.0,0.33178472]
[1729004753804,0.3608,65268.0,65265.0,0.41]
[1729004754101,0.3608,65268.0,65258.0,0.22880788]
[1729004754102,0.076621,65259.0,65258.0,0.22880788]
[1729004754301,0.076621,65259.0,65242.0,0.3608]
[1729004754302,1.3708,65259.0,65245.0,0.06068472]
[1729004754507,1.3708,65259.0,65229.0,0.076656]
[1729004754508,0.41,65244.0,65229.0,0.076656]
[1729004754797,0.7216,65246.0,65224.0,0.3608]
[1729004754798,0.41,65230.0,65224.0,0.3608]
[1729004755405,0.3608,65239.0,65224.0,0.3608]
[1729004755703,0.41,65227.0,65224.0,0.36904983]
[1729004756002,0.3608,65239.0,65224.0,0.36904983]
[1729004756305,0.41,65228.0,65216.0,0.43665749]
[1729004756493,0.41,65221.0,65216.0,0.3608]
[1729004756688,0.3608,65229.0,65216.0,0.3608]
[1729004756689,0.41,65228.0,65216.0,0.3608]
[1729004756890,0.076661,65226.0,65216.0,0.437472]
[1729004757195,0.41,65228.0,65218.0,0.07585749]
[1729004757196,0.076664,65223.0,65218.0,0.07585749]
[1729004757392,0.076658,65228.0,65218.0,0.076669]
[1729004757594,0.3608,65229.0,65216.0,0.00825152]
[1729004757595,0.41,65222.0,65216.0,0.00825152]
[1729004757799,0.41,65222.0,65212.0,0.07585749]
[1729004758004,0.076676,65212.0,65210.0,0.07585749]
[1729004758193,0.076676,65212.0,65211.0,0.08849467]
[1729004758397,0.3608,65223.0,65211.0,0.08849467]
[1729004758701,0.3608,65223.0,65206.0,0.09102899]
[1729004758702,0.076675,65213.0,65212.0,0.07601443]
[1729004758895,0.076675,65213.0,65210.0,0.07601443]
[1729004759202,0.3608,65217.0,65208.0,0.07601443]
[1729004759398,0.3608,65217.0,65210.0,0.07601443]
[1729004759705,0.3608,65217.0,65211.0,0.16437934]
[1729004759706,0.076674,65214.0,65211.0,0.16437934]
[1729004759892,0.3608,65217.0,65211.0,0.07601443]
[1729004760204,0.486667,65220.0,65213.0,0.07601443]
[1729004760205,0.00096,65220.0,65213.0,0.07601443]
[1729004760401,0.00096,65220.0,65212.0,0.44903105]
[1729004760402,0.07666,65226.0,65219.0,0.3608]
[1729004760609,0.3608,65231.0,65220.0,0.07601443]
[1729004760806,0.07666,65226.0,65222.0,0.07601443]
[1729004761003,0.7708,65231.0,65220.0,0.07601443]
[1729004761004,0.076665,65222.0,65220.0,0.07601443]
[1729004761308,0.41,65225.0,65219.0,0.3693297]
[1729004761701,0.076659,65227.0,65219.0,0.3693297]
[1729004761901,0.076661,65226.0,65219.0,0.3693297]
[1729004762099,0.36176,65231.0,65224.0,0.076662]
[1729004762299,0.3608,65231.0,65225.0,0.076661]
[1729004762496,0.3608,65233.0,65225.0,0.3608]
[1729004762702,0.00096,65238.0,65236.0,0.076648]
[1729004762905,0.076639,65244.0,65236.0,0.076648]
[1729004763209,0.41,65248.0,65236.0,0.076648]
[1729004763407,0.3608,65251.0,65233.0,0.07601443]
[1729004763408,0.41,65243.0,65233.0,0.07601443]
[1729004763595,0.3608,65244.0,65232.0,0.43681443]
[1729004763596,0.076651,65234.0,65232.0,0.43681443]
[1729004763803,0.076651,65234.0,65219.0,0.3608]
[1729004763804,0.076655,65230.0,65228.0,0.07601443]
[1729004764008,0.076658,65228.0,65227.0,0.00825753]
[1729004764308,0.076658,65228.0,65219.0,0.45274899]
[1729004764309,0.7708,65231.0,65219.0,0.3608]
[1729004764611,0.7708,65231.0,65207.0,0.3630998]
[1729004764612,0.076682,65207.0,65206.0,0.09102899]
[1729004764916,0.7708,65207.0,65196.0,0.09102899]
[1729004765097,0.437492,65199.0,65196.0,0.09102899]
[1729004765294,0.437492,65199.0,65193.0,0.007717]
[1729004765502,1.497612,65199.0,65185.0,0.076708]
[1729004765708,1.497612,65199.0,65185.0,0.00770703]
[1729004765905,1.497612,65199.0,65197.0,0.076694]
[1729004765906,0.82092,65199.0,65197.0,0.076694]
[1729004766100,1.42092,65199.0,65185.0,0.00770703]
[1729004766310,0.3608,65199.0,65191.0,0.076701]
[1729004766498,0.3608,65199.0,65185.0,0.01629274]
[1729004766701,0.3608,65199.0,65194.0,0.076697]
[1729004766901,0.3608,65199.0,65195.0,0.076696]
[1729004767101,0.487651,65200.0,65196.0,0.076695]
[1729004767304,0.46012,65199.0,65185.0,0.00770703]
[1729004767509,0.46012,65199.0,65184.0,0.3608]
[1729004767710,1.06012,65199.0,65184.0,0.3608]
[1729004767904,1.06012,65199.0,65185.0,0.076708]
[1729004767905,1.136812,65199.0,65185.0,0.076708]
[1729004768100,1.136812,65199.0,65186.0,0.076707]
[1729004768302,1.136812,65199.0,65176.0,0.076718]
[1729004768504,0.076705,65188.0,65170.0,0.3608]
[1729004768710,0.076705,65188.0,65157.0,0.3608]
[1729004768711,0.076728,65168.0,65164.0,0.3608]
[1729004769014,0.3608,65172.0,65164.0,0.36164]
[1729004769204,0.00230308,65182.0,65172.0,0.41]
[1729004769401,0.00230308,65182.0,65171.0,0.3608]
[1729004769402,0.00230308,65182.0,65180.0,0.076713]
[1729004770404,0.41,65184.0,65178.0,0.3608]
[1729004770699,0.41,65184.0,65171.0,0.3608]
[1729004770700,0.486715,65179.0,65172.0,0.076723]
[1729004770900,0.076715,65179.0,65172.0,0.076723]
[1729004771302,0.3608,65177.0,65170.0,0.00842659]
[1729004771506,0.3608,65177.0,65156.0,0.7709229]
[1729004771507,0.3608,65171.0,65143.0,0.3608]
[1729004771704,0.3608,65171.0,65119.0,0.12137199]
[1729004771705,0.3608,65152.0,65136.0,0.3608]
[1729004771908,0.90705912,65152.0,65136.0,0.3608]
[1729004772100,0.00230407,65166.0,65129.0,0.09102899]
[1729004772101,0.7708,65137.0,65129.0,0.09102899]
[1729004772301,0.7708,65137.0,65122.0,0.3608]
[1729004772302,0.3608,65137.0,65130.0,0.09102899]
[1729004772517,0.7708,65131.0,65116.0,0.3608]
[1729004772716,0.3608,65117.0,65105.0,0.3608]
[1729004772903,0.076787,65118.0,65105.0,0.3608]
[1729004772904,0.41,65114.0,65105.0,0.3608]
[1729004773104,0.41,65121.0,65105.0,0.36852576]
[1729004773402,0.3608,65124.0,65111.0,0.3608]
[1729004773403,0.3608,65118.0,65111.0,0.3608]
[1729004773602,0.41,65116.0,65111.0,0.3608]
[1729004773803,0.41,65133.0,65114.0,0.437591]
[1729004774013,0.3608,65128.0,65121.0,0.3608]
[1729004774311,0.7708,65143.0,65127.0,0.3608]
[1729004774612,0.41,65130.0,65121.0,0.3608]
[1729004774804,0.076814,65095.0,65094.0,0.00092]
[1729004775005,0.076814,65095.0,65079.0,0.26031203]
[1729004775006,0.7708,65095.0,65079.0,0.26031203]
[1729004775210,0.41,65084.0,65079.0,0.00859203]
[1729004775413,0.41,65084.0,65072.0,0.3608]
[1729004775711,0.3608,65088.0,65074.0,0.076838]
[1729004775712,0.41,65077.0,65074.0,0.076838]
[1729004775914,0.41,65083.0,65075.0,0.076837]
[1729004776104,0.41,65083.0,65072.0,0.3608]
[1729004776305,0.3608,65076.0,65073.0,0.076839]
[1729004776506,0.3608,65074.0,65063.0,0.00844516]
[1729004776706,0.3608,65082.0,65063.0,0.00844516]
[1729004776707,0.3608,65082.0,65081.0,0.076831]
[1729004776915,0.41,65091.0,65089.0,0.076821]
[1729004777714,0.41,65091.0,65078.0,0.3608]
[1729004777715,0.36310629,65092.0,65091.0,0.076819]
[1729004777918,0.00230629,65092.0,65091.0,0.076819]
[1729004778214,0.41230629,65092.0,65078.0,0.3608]
[1729004778419,0.3608,65086.0,65084.0,0.076827]
[1729004778716,0.41,65086.0,65078.0,0.3608]
[1729004779614,0.3608,65089.0,65057.0,0.3608]
[1729004779615,0.7708,65079.0,65057.0,0.3608]
[1729004779817,0.7708,65079.0,65065.0,0.3608]
[1729004779818,0.41,65078.0,65065.0,0.3608]
[1729004780116,0.076785,65120.0,65065.0,0.3608]
[1729004780117,0.41,65089.0,65079.0,0.076832]
[1729004780422,0.41,65083.0,65072.0,0.437641]
[1729004780715,0.41,65083.0,65076.0,0.076836]
[1729004780920,0.3608,65093.0,65072.0,0.3608]
[1729004781118,0.3608,65085.0,65084.0,0.076827]
[1729004781620,0.3608,65085.0,65077.0,0.076835]
[1729004781819,0.3608,65085.0,65078.0,0.076833]
[1729004782015,0.3608,65085.0,65080.0,0.076831]
[1729004782612,0.3608,65085.0,65072.0,0.36908579]
[1729004782818,0.41,65077.0,65072.0,0.3608]
[1729004783514,0.3608,65085.0,65072.0,0.3608]
[1729004783515,0.41,65083.0,65072.0,0.3608]
[1729004783907,0.3608,65085.0,65072.0,0.3608]
[1729004784109,0.3608,65085.0,65076.0,0.076836]
[1729004784411,0.3608,65085.0,65072.0,0.3608]
[1729004784412,0.41,65080.0,65072.0,0.3608]
[1729004784616,0.3608,65085.0,65066.0,0.3608]
[1729004784617,0.076841,65073.0,65066.0,0.3608]
[1729004784825,0.076841,65073.0,65055.0,0.3608]
[1729004784826,0.3608,65069.0,65055.0,0.3608]
[1729004785122,0.41,65058.0,65055.0,0.3608]
[1729004785314,0.076854,65062.0,65055.0,0.3608]
[1729004785516,0.41,65056.0,65055.0,0.3608]
[1729004785717,0.41,65062.0,65055.0,0.3608]
[1729004785912,0.41,65073.0,65061.0,0.3608]
[1729004786115,0.3608,65071.0,65061.0,0.3608]
[1729004786318,0.486853,65063.0,65061.0,0.3608]
[1729004786519,0.076859,65057.0,65055.0,0.3608]
[1729004786715,0.076864,65053.0,65045.0,0.3608]
[1729004786921,0.30697985,65056.0,65045.0,0.3608]
[1729004787218,0.00833665,65072.0,65045.0,0.3608]
[1729004787219,0.41,65068.0,65051.0,0.3608]
[1729004787410,0.41,65068.0,65059.0,0.076856]
[1729004787613,0.41,65068.0,65061.0,0.3608]
[1729004788018,0.07686,65056.0,65045.0,0.00859789]
[1729004788220,0.41,65053.0,65039.0,0.00759031]
[1729004788410,0.3608,65052.0,65040.0,0.076879]
[1729004788614,0.7708,65052.0,65041.0,0.076877]
[1729004789017,0.7708,65052.0,65042.0,0.076876]
[1729004789219,0.7708,65052.0,65038.0,0.36907578]
[1729004789220,0.41,65058.0,65045.0,0.3608]
[1729004789416,0.076859,65057.0,65045.0,0.3608]
[1729004789624,0.41,65051.0,65045.0,0.3608]
[1729004789822,0.41,65051.0,64314.0,0.14908142]
[1729004789823,0.7708,65046.0,65029.0,0.3608]
[1729004790133,0.40994662,65030.0,65029.0,0.3608]
[1729004790327,0.41,65030.0,65029.0,0.3608]
[1729004790923,0.41,65036.0,65029.0,0.437692]
[1729004791123,0.41,65036.0,65035.0,0.3608]
[1729004791822,0.41,65036.0,65029.0,0.3608]
[1729004791823,0.41,65036.0,65031.0,0.076889]
[1729004792134,0.41,65036.0,65035.0,0.3608]
[1729004792433,0.41,65037.0,65029.0,0.3608]
[1729004792638,0.41,65031.0,65029.0,0.3608]
[1729004792932,0.3608,65055.0,65030.0,0.46128]
[1729004793122,0.3608,65062.0,65041.0,0.437678]
[1729004793123,0.076864,65053.0,65041.0,0.437678]
[1729004793326,0.7708,65047.0,65030.0,0.4892]
[1729004793622,0.7708,65047.0,65029.0,0.3608]
[1729004793623,0.41,65040.0,65029.0,0.3608]
[1729004793824,0.41,65035.0,65029.0,0.3608]
[1729004794029,0.41,65040.0,65030.0,0.0008]
[1729004794228,0.3608,65031.0,65030.0,0.0008]
[1729004794538,0.3608,65031.0,65016.0,0.3608]
[1729004794740,0.3608,65041.0,65030.0,0.41]
[1729004795036,0.3608,65051.0,65033.0,0.3608]
[1729004795223,0.3608,65035.0,65029.0,0.41]
[1729004795534,0.41,65044.0,65025.0,0.3608]
[1729004795740,0.3608,65045.0,65026.0,0.41]
[1729004795942,0.3608,65051.0,65032.0,0.41]
[1729004796139,0.3608,65045.0,65032.0,0.41]
[1729004796840,0.3608,65059.0,65043.0,0.3608]
[1729004797233,0.41,65056.0,65043.0,0.3608]
[1729004797543,0.076867,65051.0,65043.0,0.3608]
[1729004797838,0.076868,65050.0,65043.0,0.3608]
[1729004798040,0.07687,65049.0,65043.0,0.3608]
[1729004798344,0.076876,65043.0,65028.0,0.04484737]
[1729004798645,0.076888,65033.0,65027.0,0.3608]
[1729004798844,0.437682,65038.0,65027.0,0.3608]
[1729004799149,0.3608,65032.0,65027.0,0.3608]
[1729004799339,0.7708,65039.0,65027.0,0.3608]
[1729004799534,0.41,65033.0,65027.0,0.3608]
[1729004799739,0.3608,65039.0,65008.0,6.9e-07]
[1729004799740,0.41,65028.0,65008.0,6.9e-07]
[1729004800037,0.41,65028.0,64994.0,0.10459323]
[1729004800038,0.076918,65008.0,64993.0,0.076934]
[1729004800340,0.076918,65008.0,64962.0,0.11959299]
[1729004800341,0.3608,64980.0,64938.0,0.13454211]
[1729004800646,0.3608,64958.0,64947.0,0.3608]
[1729004800835,0.3608,64948.0,64940.0,0.4306]
[1729004801036,0.3608,64971.0,64957.0,0.076977]
[1729004801341,0.3608,64971.0,64947.0,0.3608]
[1729004801342,0.3608,64963.0,64953.0,0.3608]
[1729004801542,0.3608,64971.0,64970.0,0.076962]
[1729004801736,0.3539,64994.0,64970.0,0.41]
[1729004801935,0.076869,65049.0,64970.0,0.41]
[1729004801936,0.3608,65006.0,65005.0,0.076921]
[1729004802136,0.3608,65014.0,65012.0,0.076911]
[1729004802340,0.3608,65014.0,64994.0,0.6469]
[1729004802548,0.3608,65006.0,64995.0,0.08708114]
[1729004802844,0.3608,65004.0,65000.0,0.076925]
[1729004803045,0.3608,65004.0,64982.0,0.3608]
[1729004803046,0.3608,65002.0,64982.0,0.3608]
[1729004803349,0.076918,65008.0,64976.0,0.251]
[1729004803350,1.1316,64983.0,64976.0,0.251]
[1729004803547,1.1316,64983.0,64953.0,0.3608]
[1729004803548,0.7708,64977.0,64953.0,0.3608]
[1729004803842,0.7708,64977.0,64949.0,0.41]
[1729004803843,0.3608,64954.0,64932.0,0.41]
[1729004804042,0.3608,64954.0,64937.0,0.0892438]
[1729004804241,0.07699,64947.0,64944.0,0.41]
[1729004804443,0.076982,64954.0,64945.0,0.0892438]
[1729004804650,0.3608,64946.0,64939.0,1.5]
[1729004804851,0.3608,64954.0,64944.0,0.41]
[1729004805033,0.3608,64946.0,64936.0,0.0001]
[1729004805636,0.3608,64954.0,64943.0,0.41]
[1729004805836,0.3608,64954.0,64937.0,2.36061256]
[1729004806042,0.3608,64966.0,64953.0,0.3608]
[1729004806238,0.3608,64966.0,64960.0,0.3608]
[1729004806441,0.076971,64963.0,64953.0,0.3608]
[1729004806644,0.3608,64966.0,64953.0,0.3608]
[1729004806848,0.3608,64966.0,64954.0,0.23063173]
[1729004807043,0.076968,64965.0,64954.0,0.23063173]
[1729004807238,0.3608,64966.0,64953.0,0.3608]
[1729004807438,0.076969,64965.0,64953.0,0.3608]
[1729004807637,0.3608,64974.0,64964.0,0.41]
[1729004807846,0.07693,64997.0,64982.0,0.076947]
[1729004808040,0.07693,64997.0,64973.0,0.7708]
[1729004808041,0.076932,64996.0,64991.0,0.41]
[1729004808239,0.437732,64996.0,64985.0,0.41]
[1729004808548,0.3608,64996.0,64986.0,1.5]
[1729004808755,0.43773,64997.0,64987.0,0.3608]
[1729004808954,0.3608,65003.0,64986.0,1.91]
[1729004809252,0.3608,65003.0,64986.0,0.4108]
[1729004809253,0.076933,64995.0,64986.0,0.4108]
[1729004809553,0.3608,64997.0,64986.0,0.41]
[1729004809854,0.3608,65003.0,64986.0,0.41]
[1729004809855,0.076925,65001.0,64991.0,0.41]
[1729004810046,0.3608,65011.0,64991.0,0.41]
[1729004810047,0.437714,65011.0,64996.0,0.3608]
[1729004810252,0.3608,65011.0,64998.0,0.41]
[1729004810452,0.3608,65021.0,65010.0,0.3608]
[1729004810644,0.41,65020.0,65002.0,0.3608]
[1729004810840,0.076915,65010.0,65002.0,0.3608]
[1729004811042,0.77212,65014.0,65002.0,0.3608]
[1729004811246,0.41,65003.0,64990.0,0.3608]
[1729004811454,0.3608,65007.0,64996.0,0.3608]
[1729004811747,0.3608,65007.0,64990.0,0.3608]
[1729004811748,0.3608,65007.0,64991.0,0.23215111]
[1729004811940,0.3608,65007.0,64996.0,0.3608]
[1729004812147,0.3608,65007.0,64998.0,0.076929]
[1729004812344,0.3608,65007.0,64996.0,0.3608]
[1729004812546,0.3608,65014.0,64996.0,0.3608]
[1729004812745,0.076917,65008.0,64996.0,0.3608]
[1729004812946,0.3608,65007.0,64996.0,0.3608]
[1729004813146,0.3608,65007.0,64998.0,0.076929]
[1729004813441,0.3608,65007.0,64996.0,0.3608]
[1729004813442,0.41,65004.0,64996.0,0.3608]
[1729004813643,0.7708,64999.0,64980.0,0.2435]
[1729004813846,0.3608,64991.0,64984.0,0.076945]
[1729004814646,0.076933,64995.0,64984.0,0.076945]
[1729004814955,0.3608,64992.0,64986.0,0.076942]
[1729004815140,0.3608,64992.0,64984.0,0.014]
[1729004815345,0.847744,64985.0,64984.0,0.014]
[1729004815552,0.437744,64985.0,64984.0,0.014]
[1729004816057,0.001,64991.0,64984.0,0.014]
[1729004816243,0.001,64991.0,64990.0,0.076938]
[1729004816760,0.001,64991.0,64990.0,1.138538]
[1729004817051,0.41,64991.0,64988.0,0.06069243]
[1729004817254,0.3608,64989.0,64988.0,0.06069243]
[1729004817451,0.3608,64989.0,64987.0,0.06069243]
[1729004817755,0.3608,64989.0,64986.0,0.07269243]
[1729004817954,0.001,64992.0,64990.0,0.076937]
[1729004818248,0.001,64992.0,64987.0,0.06069243]
[1729004818249,0.076941,64988.0,64987.0,0.06060831]
[1729004818450,0.076942,64987.0,64986.0,0.012]
[1729004818645,0.076949,64982.0,64970.0,0.076962]
[1729004818849,0.3608,64971.0,64965.0,0.076967]
[1729004819052,0.3608,64975.0,64963.0,0.076969]
[1729004819250,0.41,64984.0,64962.0,1.576971]
[1729004819251,0.076959,64973.0,64962.0,1.576971]
[1729004819446,0.076959,64973.0,64962.0,1.5]
[1729004819643,0.437758,64974.0,64964.0,0.076969]
[1729004819851,0.3608,64982.0,64966.0,0.3608]
[1729004820153,0.3618,64991.0,64978.0,0.3608]
[1729004820154,0.001,64991.0,64978.0,0.3608]
[1729004820353,0.437722,65004.0,64987.0,0.7216]
[1729004820654,0.41,65003.0,64987.0,0.3608]
[1729004820852,0.41,65003.0,64988.0,0.08710774]
[1729004821048,0.41,64998.0,64987.0,0.3608]
[1729004821356,0.3608,65019.0,64997.0,0.7708]
[1729004821555,0.3608,65019.0,65009.0,0.3608]
[1729004821743,0.3608,65013.0,64997.0,0.7708]
[1729004822051,0.076939,64990.0,64984.0,1.5]
[1729004822255,0.076939,64990.0,64983.0,0.09113955]
[1729004822256,0.41,64987.0,64978.0,0.3728]
[1729004822449,0.3608,64982.0,64978.0,0.088952]
[1729004822643,0.3608,64988.0,64978.0,0.012]
[1729004823152,0.3608,65006.0,64987.0,0.41]
[1729004823352,0.001,64998.0,64995.0,0.41]
[1729004823558,0.001,64998.0,64997.0,0.07693]
[1729004823952,0.3608,65017.0,64997.0,1.38072362]
[1729004824153,0.3608,65017.0,65016.0,0.076907]
[1729004824647,0.3608,65023.0,65016.0,0.076907]
[1729004825048,0.3608,65023.0,65021.0,0.076901]
[1729004825244,0.076886,65034.0,65023.0,0.076899]
[1729004825450,0.3608,65041.0,65028.0,0.3608]
[1729004825654,0.3608,65041.0,65034.0,0.3608]
[1729004825856,0.3608,65041.0,65039.0,0.07688]
[1729004826056,0.3608,65050.0,65043.0,0.076874]
[1729004826356,0.3608,65063.0,65055.0,0.076861]
[1729004826553,0.3608,65063.0,65049.0,0.3608]
[1729004826554,0.3608,65063.0,65054.0,0.41]
[1729004826863,0.3608,65070.0,65067.0,0.076846]
[1729004827153,0.3608,65070.0,65060.0,0.41]
[1729004827154,0.3608,65072.0,65060.0,0.43092]
[1729004827549,0.3608,65062.0,65060.0,0.43092]
[1729004827950,0.076854,65061.0,65060.0,0.43092]
[1729004828148,0.3608,65062.0,65054.0,0.001]
[1729004828149,0.07686,65056.0,65054.0,0.001]
[1729004828346,0.3608,65055.0,65054.0,0.001]
[1729004828554,0.3608,65055.0,65040.0,0.00230563]
[1729004828771,0.076872,65046.0,65042.0,0.41]
[1729004829061,0.3608,65059.0,65045.0,0.3608]
[1729004829257,0.3608,65059.0,65058.0,0.41]
[1729004829454,0.076814,65095.0,65058.0,0.7708]
[1729004829455,0.076843,65071.0,65058.0,0.7708]
[1729004829661,0.003,65062.0,65058.0,0.7708]
[1729004829860,0.003,65062.0,65061.0,0.41]
[1729004830050,0.003,65062.0,65061.0,0.87112]
[1729004830249,0.003,65062.0,65051.0,0.3608]
[1729004830457,0.001,65059.0,65055.0,0.41]
[1729004830762,0.3608,65077.0,65058.0,0.41]
[1729004830960,0.437643,65071.0,65058.0,0.41]
[1729004831159,0.3608,65064.0,65058.0,0.41]
[1729004831551,0.076848,65066.0,65058.0,0.41]
[1729004831753,0.3608,65071.0,65058.0,0.41]
[1729004831754,0.3608,65065.0,65058.0,0.41]
[1729004832249,0.3608,65082.0,65068.0,0.076845]
[1729004832457,0.00758098,65134.0,65068.0,0.076845]
[1729004832458,0.36310638,65091.0,65083.0,0.076827]
[1729004832760,0.36310638,65091.0,65090.0,0.41]
[1729004832959,0.36310638,65091.0,65071.0,0.3608]
[1729004832960,0.82168,65091.0,65071.0,0.3608]
[1729004833256,0.076799,65109.0,65070.0,0.41]
[1729004833257,0.3608,65077.0,65070.0,0.41]
[1729004833455,0.3608,65077.0,65061.0,0.00230495]
[1729004833456,0.076853,65063.0,65061.0,0.00230495]
[1729004833661,0.3608,65062.0,65061.0,0.00230495]
[1729004834051,0.3608,65064.0,65061.0,0.00230495]
[1729004834450,0.3608,65076.0,65061.0,0.00230495]
[1729004834451,0.3608,65068.0,65063.0,0.41]
[1729004834952,0.437637,65076.0,65064.0,0.41]
[1729004834953,0.3608,65076.0,65064.0,0.41]
[1729004835162,0.3608,65069.0,65064.0,0.23192559]
[1729004835362,0.3608,65069.0,65061.0,0.08515895]
[1729004835560,0.3608,65069.0,65061.0,0.00830495]
[1729004835866,0.3608,65063.0,65061.0,0.00830495]
[1729004836051,0.3608,65063.0,65041.0,1.5008]
[1729004836052,0.076864,65053.0,65037.0,0.3608]
[1729004836365,0.7708,65041.0,65028.0,0.07582154]
[1729004836662,0.7708,65029.0,65028.0,0.07582154]
[1729004836961,0.3608,65029.0,65028.0,0.07582154]
[1729004837553,1.83212,65029.0,65028.0,0.07582154]
[1729004837755,0.3608,65029.0,65028.0,0.07582154]
[1729004838160,0.82212,65029.0,65028.0,0.08082154]
[1729004838659,0.3608,65029.0,65028.0,0.005]
[1729004839561,0.076895,65027.0,65002.0,0.1366014]
[1729004839758,1.42212,65029.0,65002.0,0.1366014]
[1729004839759,0.3608,65004.0,65002.0,0.1366014]
[1729004840067,0.3608,65011.0,65003.0,0.6404943]
[1729004840357,0.3608,65011.0,65010.0,0.41]
[1729004840561,0.3608,65011.0,64994.0,0.00230733]
[1729004840562,0.3608,65011.0,65004.0,0.41]
[1729004840950,0.3608,65011.0,65005.0,0.23034092]
[1729004841153,0.3608,65011.0,65004.0,0.41]
[1729004841450,0.3608,65022.0,65010.0,0.41]
[1729004841655,0.3608,65022.0,65021.0,0.41]
[1729004841949,0.07689,65031.0,65021.0,0.41]
[1729004842149,0.3608,65022.0,65021.0,0.41]
[1729004842356,0.076907,65017.0,65010.0,0.006]
[1729004842557,0.3608,65011.0,65010.0,0.006]
[1729004842756,0.7216,65011.0,65010.0,0.006]
[1729004843265,0.7216,65011.0,64999.0,0.41]
[1729004843559,0.3608,65011.0,64999.0,0.486927]
[1729004843856,0.3608,65024.0,65010.0,0.076914]
[1729004844058,0.3538,65024.0,65015.0,0.41]
[1729004844264,0.3538,65024.0,65006.0,0.3608]
[1729004844265,0.3608,65057.0,65024.0,0.076897]
[1729004844458,0.3608,65057.0,65042.0,0.3608]
[1729004844652,0.3608,65057.0,65045.0,0.076873]
[1729004844851,0.3608,65057.0,65042.0,0.3608]
[1729004844852,0.3608,65057.0,65056.0,0.41]
[1729004845257,0.3595,65065.0,65056.0,0.7708]
[1729004845556,0.3608,65076.0,65063.0,0.3608]
[1729004845761,0.3608,65076.0,65070.0,0.41]
[1729004845968,0.3608,65076.0,65065.0,0.076849]
[1729004846158,0.41,65075.0,65063.0,0.3608]
[1729004846355,0.3608,65076.0,65053.0,0.3608]
[1729004846356,0.3608,65064.0,65053.0,0.3608]
[1729004846555,0.3608,65062.0,65053.0,0.3608]
[1729004846756,0.3608,65055.0,65044.0,0.0008]
[1729004846957,0.3608,65049.0,65044.0,0.0008]
[1729004847160,0.076872,65046.0,65044.0,0.0008]
[1729004847665,0.4612,65045.0,65027.0,0.00013647]
[1729004847966,0.3608,65034.0,65027.0,0.00013647]
[1729004848358,0.3608,65040.0,65027.0,0.00013647]
[1729004848858,0.001,65046.0,65027.0,0.00013647]
[1729004848859,0.3608,65035.0,65027.0,0.00013647]
[1729004849057,0.3608,65034.0,65027.0,0.00013647]
[1729004849392,0.076892,65029.0,65027.0,0.00013647]
[1729004849560,0.41,65028.0,65015.0,0.07569454]
[1729004849761,0.3608,65017.0,65003.0,0.07569454]